{"text_format":"1","workbook":"xlsx","n_sheets":7,"sheets":["Instructions","Section 1","Section 2","Reference List","Lists","Checks","OutputForCSV"],"not_rendered":{"charts":0,"images":0,"macros":1,"external_links":0,"defined_names":26,"comments":3,"pivot_tables":0},"unopened":[],"bounds":{"document_bytes":16777216,"sheet_cells":100000,"rows_first":2000,"rows_last":500,"rows_between":2000,"halvings":0,"cell_chars":16384,"cell_head_chars":4096},"cells_cut":0,"cells_raw":0,"read":"whole","date_system":"1900"}

{"sheet":"Instructions","index":0,"n_rows":21,"n_cols":3,"rows_kept":21,"cut":false,"hidden":false,"merged":[]}
[]
[null,null,"U.S. Environmental Protection Agency"]
[null,null,"Stratospheric Ozone Protection Program"]
[]
[null,null,"Second Party Destruction Annual Report (Sec 82.13 and 82.24)"]
[null,null,"Version 1.0 "]
[null,null,"Last Updated: July 2018"]
[]
[null,null,"Instructions"]
[null,null,"Complete this form by filling in the data fields that are highlighted in blue.  Guidance on how to complete individual data fields are provided in comment bubbles. Use the arrows to navigate between the tabs. Once completed, use the 'prepare submission' button in Section 2 to generate your CSV file.  "]
[null,null,"Copying and Pasting Data: If data are pasted into this reporting form from another spreadsheet, the formatting of specific cells must be consistent with the requirements of the form in order to be "]
[null,null,"accepted into EPA’s ODS Tracking System. Refer to the Reference List to identify the valid naming scheme for specific data fields. Additionally, select \"Paste As Values\" when pasting data into the form."]
[null,null,"Report Submission: This Excel file, the generated CSV file, and all supporting attachments should be submitted to EPA through the Central Data Exchange (CDX). Refer to EPA's website for additional information on form submission:"]
[null,null,"https://www.epa.gov/ods-phaseout/ods-recordkeeping-and-reporting"]
[]
[null,null,"All information submitted to EPA will be treated as confidential in accordance with 40 CFR Part 2, Subpart B, and will only be disclosed by the means set forth in the subpart. "]
[null,null,"The public reporting and recordkeeping burden for this collection of information is estimated to average 2 hours per response.  Send comments on the Agency's need for this information, the accuracy of the provided burden estimates, and any suggested methods for minimizing respondent burden, including through the use of automated collection techniques to the Director, Collection Strategies Division, U.S. Environmental Protection Agency (2822T), 1200 Pennsylvania Avenue NW, Washington, D.C. 20460.  Include the OMB control number in any correspondence.  Do not send the completed form to this address."]
[]
[null,null,"EPA Form #5900-148"]
[null,null,"OMB Control Number: 2060-0170"]
[null,null,"Expiration Date: 10/31/2018"]

{"sheet":"Section 1","index":1,"n_rows":14,"n_cols":9,"rows_kept":14,"cut":false,"hidden":false,"merged":[[7,2,7,3]]}
[]
[null,null,"U.S. Environmental Protection Agency"]
[null,null,"Second Party Destruction Annual Report"]
[]
[null,null,"   Date Prepared:",{"$f":"TODAY()","v":"2018-06-25"}]
[]
[null,null,"Section 1: Report Identification Information "]
[null,null,"Complete all fields below.  No fields may be left blank."]
[null,null,"Company Name: ",null,null,{"$f":"IF($D$9=0,1,0)","v":1}]
[null,null,"Submission Type:",null,null,{"$f":"IF(OR(SubTSelection=Lists!C3,SubTSelection=Lists!C4),0,1)","v":1},null,null,{"$f":"IF(SubTSelection=\"\",\"\",IF(OR(SubTSelection=Lists!C3,SubTSelection=Lists!C4),\"\",\"PLEASE SELECT A VALID SUBMISSION TYPE FROM THE DROPDOWN LIST\"))","v":""}]
[null,null,"Reporting Year:",null,null,{"$f":"IF(OR($D$11=0,$D$11>Lists!$E$3),1,0)","v":1},null,null,{"$f":"IF(D11>Lists!E3,\"PLEASE CHOOSE A CURRENT OR PAST YEAR\",\"\")","v":""}]
[null,null,null,""]
[null,null,null,{"$f":"Lists!C3","v":"Original Submission"}]
[null,null,null,{"$f":"Lists!C4","v":"Re-Submittal"}]

{"sheet":"Section 2","index":2,"n_rows":96,"n_cols":12,"rows_kept":96,"cut":false,"hidden":false,"merged":[[8,3,8,4],[9,3,9,4]]}
[]
[null,null,null,"U.S. Environmental Protection Agency"]
[null,null,null,"Second Party Destruction Annual Report"]
[]
[null,null,null,"Company Name:",{"$f":"IF('Section 1'!D9=0,\"\",'Section 1'!D9)","v":""}]
[null,null,null,"Reporting Period:",{"$f":"IF('Section 1'!D11=0,\"\",'Section 1'!D11)","v":""}]
[]
[null,null,null,"Section 2: Destruction Data"]
[null,null,null,"In the table below, enter the quantity of each controlled substance that was destroyed during the reporting period. "]
[null,null,null,"If copying and pasting data into the table, please refer to the Reference List and the accompanying instructions."]
[null,null,null,"Chemical Name","Quantity Destroyed"]
[null,null,null,"Selection","kg",null,null,null,"Checks (1 = error)"]
[null,null,null,"HCFC-22",1500,null,null,null,"Active Row?","Duplicate Check","Valid Production Check","Valid Chem Name"]
[{"$f":"IF(D14=0,\"\",1)","v":""},null,null,null,null,null,null,{"$f":"IF(SUM(J14:L14)>0,\"ROW INCOMPLETE OR INVALID DATA ENTERED; ENTER/EDIT DATA IN REQUIRED FIELDS\",\"\")","v":""},{"$f":"IF(A14=\"\",\"N\",\"Y\")","v":"N"},{"$f":"IF(D14=0,0,IF(COUNTIF($D$14:$D$33,D14)>1,1,0))","v":0},{"$f":"IF(AND(D14<>0,E14=0),1,0)","v":0},{"$f":"IF(D14=0,0,IF(COUNTIF(ChemicalList,D14)>0,0,1))","v":0}]
[{"$f":"IF(D15=0,\"\",MAX($A$14:A14)+1)","v":""},null,null,null,null,null,null,{"$f":"IF(SUM(J15:L15)>0,\"ROW INCOMPLETE OR INVALID DATA ENTERED; ENTER/EDIT DATA IN REQUIRED FIELDS\",\"\")","v":""},{"$f":"IF(A15=\"\",\"N\",\"Y\")","v":"N"},{"$f":"IF(D15=0,0,IF(COUNTIF($D$14:$D$33,D15)>1,1,0))","v":0},{"$f":"IF(AND(D15<>0,E15=0),1,0)","v":0},0]
[{"$f":"IF(D16=0,\"\",MAX($A$14:A15)+1)","v":""},null,null,null,null,null,null,"","N",0,0,0]
[{"$f":"IF(D17=0,\"\",MAX($A$14:A16)+1)","v":""},null,null,null,null,null,null,"","N",0,0,0]
[{"$f":"IF(D18=0,\"\",MAX($A$14:A17)+1)","v":""},null,null,null,null,null,null,"","N",0,0,0]
[{"$f":"IF(D19=0,\"\",MAX($A$14:A18)+1)","v":""},null,null,null,null,null,null,"","N",0,0,0]
[{"$f":"IF(D20=0,\"\",MAX($A$14:A19)+1)","v":""},null,null,null,null,null,null,"","N",0,0,0]
[{"$f":"IF(D21=0,\"\",MAX($A$14:A20)+1)","v":""},null,null,null,null,null,null,"",{"$f":"IF(A21=\"\",\"N\",\"Y\")","v":"N"},{"$f":"IF(D21=0,0,IF(COUNTIF($D$14:$D$33,D21)>1,1,0))","v":0},0,0]
[{"$f":"IF(D22=0,\"\",MAX($A$14:A21)+1)","v":""},null,null,null,null,null,null,"","N",0,0,0]
[{"$f":"IF(D23=0,\"\",MAX($A$14:A22)+1)","v":""},null,null,null,null,null,null,"",{"$f":"IF(A23=\"\",\"N\",\"Y\")","v":"N"},{"$f":"IF(D23=0,0,IF(COUNTIF($D$14:$D$33,D23)>1,1,0))","v":0},{"$f":"IF(AND(D23<>0,E23=0),1,0)","v":0},{"$f":"IF(D23=0,0,IF(COUNTIF(ChemicalList,D23)>0,0,1))","v":0}]
[{"$f":"IF(D24=0,\"\",MAX($A$14:A23)+1)","v":""},null,null,null,null,null,null,"","N",0,0,0]
[{"$f":"IF(D25=0,\"\",MAX($A$14:A24)+1)","v":""},null,null,null,null,null,null,"","N",0,0,0]
[{"$f":"IF(D26=0,\"\",MAX($A$14:A25)+1)","v":""},null,null,null,null,null,null,"","N",0,0,0]
[{"$f":"IF(D27=0,\"\",MAX($A$14:A26)+1)","v":""},null,null,null,null,null,null,"","N",0,0,0]
[{"$f":"IF(D28=0,\"\",MAX($A$14:A27)+1)","v":""},null,null,null,null,null,null,"","N",0,0,0]
[{"$f":"IF(D29=0,\"\",MAX($A$14:A28)+1)","v":""},null,null,null,null,null,null,"","N",0,0,0]
[{"$f":"IF(D30=0,\"\",MAX($A$14:A29)+1)","v":""},null,null,null,null,null,null,"","N",0,0,0]
[{"$f":"IF(D31=0,\"\",MAX($A$14:A30)+1)","v":""},null,null,null,null,null,null,"","N",0,0,0]
[{"$f":"IF(D32=0,\"\",MAX($A$14:A31)+1)","v":""},null,null,null,null,null,null,"","N",0,0,0]
[{"$f":"IF(D33=0,\"\",MAX($A$14:A32)+1)","v":""},null,null,null,null,null,null,"","N",0,0,0]
[null,null,null,"x"]
[null,null,null,{"$f":"Lists!B3","v":"CFC-11"}]
[null,null,null,{"$f":"Lists!B4","v":"CFC-12"}]
[null,null,null,{"$f":"Lists!B5","v":"CFC-13"}]
[null,null,null,{"$f":"Lists!B6","v":"CFC-111"}]
[null,null,null,{"$f":"Lists!B7","v":"CFC-112"}]
[null,null,null,{"$f":"Lists!B8","v":"CFC-113"}]
[null,null,null,{"$f":"Lists!B9","v":"CFC-114"}]
[null,null,null,{"$f":"Lists!B10","v":"CFC-115"}]
[null,null,null,{"$f":"Lists!B11","v":"CFC-211"}]
[null,null,null,{"$f":"Lists!B12","v":"CFC-212"}]
[null,null,null,{"$f":"Lists!B13","v":"CFC-213"}]
[null,null,null,{"$f":"Lists!B14","v":"CFC-214"}]
[null,null,null,{"$f":"Lists!B15","v":"CFC-215"}]
[null,null,null,{"$f":"Lists!B16","v":"CFC-216"}]
[null,null,null,{"$f":"Lists!B17","v":"CFC-217"}]
[null,null,null,{"$f":"Lists!B18","v":"Halon 1202"}]
[null,null,null,{"$f":"Lists!B19","v":"Halon 1211"}]
[null,null,null,{"$f":"Lists!B20","v":"Halon 1301"}]
[null,null,null,{"$f":"Lists!B21","v":"Halon 2402"}]
[null,null,null,{"$f":"Lists!B22","v":"CBM"}]
[null,null,null,{"$f":"Lists!B23","v":"CCL4"}]
[null,null,null,{"$f":"Lists!B24","v":"CH3CCL3"}]
[null,null,null,{"$f":"Lists!B25","v":"HBFCs"}]
[null,null,null,{"$f":"Lists!B26","v":"CH3Br"}]
[null,null,null,{"$f":"Lists!B27","v":"HCFC-21"}]
[null,null,null,{"$f":"Lists!B28","v":"HCFC-22"}]
[null,null,null,{"$f":"Lists!B29","v":"HCFC-31"}]
[null,null,null,{"$f":"Lists!B30","v":"HCFC-121"}]
[null,null,null,{"$f":"Lists!B31","v":"HCFC-122"}]
[null,null,null,{"$f":"Lists!B32","v":"HCFC-123"}]
[null,null,null,{"$f":"Lists!B33","v":"HCFC-123a"}]
[null,null,null,{"$f":"Lists!B34","v":"HCFC-123b"}]
[null,null,null,{"$f":"Lists!B35","v":"HCFC-124"}]
[null,null,null,{"$f":"Lists!B36","v":"HCFC-124a"}]
[null,null,null,{"$f":"Lists!B37","v":"HCFC-131"}]
[null,null,null,{"$f":"Lists!B38","v":"HCFC-132b"}]
[null,null,null,{"$f":"Lists!B39","v":"HCFC-133a"}]
[null,null,null,{"$f":"Lists!B42","v":"HCFC-141b"}]
[null,null,null,{"$f":"Lists!B45","v":"HCFC-142b"}]
[null,null,null,{"$f":"Lists!B46","v":"HCFC-151"}]
[null,null,null,{"$f":"Lists!B47","v":"HCFC-221"}]
[null,null,null,{"$f":"Lists!B48","v":"HCFC-222"}]
[null,null,null,{"$f":"Lists!B49","v":"HCFC-223"}]
[null,null,null,{"$f":"Lists!B50","v":"HCFC-224"}]
[null,null,null,{"$f":"Lists!B51","v":"HCFC-225ca"}]
[null,null,null,{"$f":"Lists!B52","v":"HCFC-225cb"}]
[null,null,null,{"$f":"Lists!B53","v":"HCFC-226"}]
[null,null,null,{"$f":"Lists!B54","v":"HCFC-231"}]
[null,null,null,{"$f":"Lists!B55","v":"HCFC-232"}]
[null,null,null,{"$f":"Lists!B56","v":"HCFC-233"}]
[null,null,null,{"$f":"Lists!B57","v":"HCFC-234"}]
[null,null,null,{"$f":"Lists!B58","v":"HCFC-235"}]
[null,null,null,{"$f":"Lists!B59","v":"HCFC-241"}]
[null,null,null,{"$f":"Lists!B60","v":"HCFC-242"}]
[null,null,null,{"$f":"Lists!B61","v":"HCFC-243"}]
[null,null,null,{"$f":"Lists!B62","v":"HCFC-244"}]
[null,null,null,{"$f":"Lists!B63","v":"HCFC-251"}]
[null,null,null,{"$f":"Lists!B64","v":"HCFC-252"}]
[null,null,null,{"$f":"Lists!B65","v":"HCFC-253"}]
[null,null,null,{"$f":"Lists!B66","v":"HCFC-261"}]
[null,null,null,{"$f":"Lists!B67","v":"HCFC-262"}]
[null,null,null,{"$f":"Lists!B68","v":"HCFC-271"}]

{"sheet":"Reference List","index":3,"n_rows":23,"n_cols":7,"rows_kept":23,"cut":false,"hidden":false,"merged":[[6,2,6,6],[5,2,5,6],[8,2,8,6]]}
[]
[null,null,"U.S. Environmental Protection Agency"]
[null,null,"Second Party Destruction Annual Report"]
[null,null,"Reference List"]
[]
[null,null,"Copying and Pasting Data: If data are pasted into this reporting form from another spreadsheet, the formatting of specific cells must be consistent with the requirements of the form in order to be accepted into EPA’s ODS tracking system.  When copying and pasting data into the form, please ensure consistency with the formatting of the list below."]
[null,null,"Chemical Name List: The table below lists the valid chemical names that may be used when entering data into Section 2 of this form. "]
[]
[null,null,"Chemical Name"]
[null,null,"CFC-11","CFC-217","HCFC-122 ","HCFC-142b ","HCFC-241"]
[null,null,"CFC-12","Halon 1202","HCFC-123 ","HCFC-151","HCFC-242 "]
[null,null,"CFC-13","Halon 1211","HCFC-123a","HCFC-221 ","HCFC-243 "]
[null,null,"CFC-111","Halon 1301","HCFC-123b","HCFC-222 ","HCFC-244 "]
[null,null,"CFC-112","Halon 2402","HCFC-124","HCFC-223","HCFC-251 "]
[null,null,"CFC-113","CBM","HCFC-124a","HCFC-224 ","HCFC-252"]
[null,null,"CFC-114","CCL4","HCFC-131","HCFC-225ca","HCFC-253"]
[null,null,"CFC-115","CH3CCL3","HCFC-132b","HCFC-225cb ","HCFC-261"]
[null,null,"CFC-211","HBFCs","HCFC-133a","HCFC-226","HCFC-262"]
[null,null,"CFC-212","CH3Br","HCFC-141","HCFC-231","HCFC-271"]
[null,null,"CFC-213","HCFC-21 ","HCFC-141a","HCFC-232 "]
[null,null,"CFC-214","HCFC-22 ","HCFC-141b ","HCFC-233 "]
[null,null,"CFC-215","HCFC-31","HCFC-142","HCFC-234 "]
[null,null,"CFC-216","HCFC-121","HCFC-142a","HCFC-235"]

{"sheet":"Lists","index":4,"n_rows":68,"n_cols":10,"rows_kept":68,"cut":false,"hidden":true,"merged":[]}
[]
[null,"Chemical Name","Submission Type","Reporting Year","Current Year","Date for CSV Title","Form Name for CSV Title",null,"Form Type","Form Code"]
[null,"CFC-11","Original Submission",2018,{"$f":"YEAR(TODAY())","v":2018},{"$f":"MONTH(SubDate)&\"-\"&DAY(SubDate)&\"-\"&YEAR(SubDate)","v":"6-25-2018"},"Second Party Destruction",null,"Class I Producer","PROD1"]
[null,"CFC-12","Re-Submittal",2019,null,null,null,null,"MeBr Producer","PROD3"]
[null,"CFC-13",null,2020,null,null,null,null,"Class II Producer","PROD2"]
[null,"CFC-111",null,null,null,null,null,null,"Class I Importer","IMPT1"]
[null,"CFC-112",null,null,null,null,null,null,"MeBr Importer","IMPT3"]
[null,"CFC-113",null,null,null,null,null,null,"Class II Importer","IMPT2"]
[null,"CFC-114",null,null,null,null,null,null,"Class I Exporter","EXPT1"]
[null,"CFC-115",null,null,null,null,null,null,"MeBr Exporter","EXPT3"]
[null,"CFC-211",null,null,null,null,null,null,"Class II Exporter","EXPT2"]
[null,"CFC-212",null,null,null,null,null,null,"Class I Lab Supplier","LABS1"]
[null,"CFC-213",null,null,null,null,null,null,"Class I Destruction","DEST1"]
[null,"CFC-214",null,null,null,null,null,null,"MeBr Destruction","DEST3"]
[null,"CFC-215",null,null,null,null,null,null,"Class II Destruction","DEST2"]
[null,"CFC-216",null,null,null,null,null,null,"Class I Transformation","TRAN1"]
[null,"CFC-217",null,null,null,null,null,null,"MeBr Transformation","TRAN3"]
[null,"Halon 1202",null,null,null,null,null,null,"Class II Transformation","TRAN2"]
[null,"Halon 1211",null,null,null,null,null,null,"MeBr Trades","TRAD3"]
[null,"Halon 1301",null,null,null,null,null,null,"Class II Trades","TRAD2"]
[null,"Halon 2402",null,null,null,null,null,null,"Class II RACA","RACA2"]
[null,"CBM",null,null,null,null,null,null,"MeBr Distributor of QPS","MBQPS"]
[null,"CCL4",null,null,null,null,null,null,"MeBr Pre-2005 Stocks","MB05S"]
[null,"CH3CCL3",null,null,null,null,null,null,"MeBr Sales of CU","MBCUE"]
[null,"HBFCs",null,null,null,null,null,null,"Petitions","PETIT"]
[null,"CH3Br"]
[null,"HCFC-21"]
[null,"HCFC-22"]
[null,"HCFC-31"]
[null,"HCFC-121"]
[null,"HCFC-122"]
[null,"HCFC-123"]
[null,"HCFC-123a"]
[null,"HCFC-123b"]
[null,"HCFC-124"]
[null,"HCFC-124a"]
[null,"HCFC-131"]
[null,"HCFC-132b"]
[null,"HCFC-133a"]
[null,"HCFC-141"]
[null,"HCFC-141a"]
[null,"HCFC-141b"]
[null,"HCFC-142"]
[null,"HCFC-142a"]
[null,"HCFC-142b"]
[null,"HCFC-151"]
[null,"HCFC-221"]
[null,"HCFC-222"]
[null,"HCFC-223"]
[null,"HCFC-224"]
[null,"HCFC-225ca"]
[null,"HCFC-225cb"]
[null,"HCFC-226"]
[null,"HCFC-231"]
[null,"HCFC-232"]
[null,"HCFC-233"]
[null,"HCFC-234"]
[null,"HCFC-235"]
[null,"HCFC-241"]
[null,"HCFC-242"]
[null,"HCFC-243"]
[null,"HCFC-244"]
[null,"HCFC-251"]
[null,"HCFC-252"]
[null,"HCFC-253"]
[null,"HCFC-261"]
[null,"HCFC-262"]
[null,"HCFC-271"]

{"sheet":"Checks","index":5,"n_rows":15,"n_cols":5,"rows_kept":15,"cut":false,"hidden":true,"merged":[]}
[]
[null,"Section","Check Description","Status (1 = Incomplete, 0 = Complete)","Check Type"]
[null,"Section 1","All",{"$f":"IF(SUM('Section 1'!F9:F11)>0,1,0)","v":1},"Stopper"]
[null,"Section 2","Duplicates",{"$f":"IF(SUM('Section 2'!J14:J33)>0,1,0)","v":0},"Stopper"]
[null,"Section 2","Negative Number",{"$f":"IF(MIN('Section 2'!E14:E33)<0,1,0)","v":0},"Stopper"]
[null,"Section 2","Valid Chem Name",{"$f":"IF(SUM('Section 2'!L14:L33)>0,1,0)","v":0},"Stopper"]
[null,"Section 2","Row Completeness",{"$f":"IF(SUM('Section 2'!K14:K33)>0,1,0)","v":0},"Stopper"]
[null,"Section 2","Filled Out?",{"$f":"IF(COUNTIF('Section 2'!$I$14:$I$33,\"Y\")=0,1,0)","v":1}]
[null,"Section 2","Error Check",{"$f":"IF(SUM(D4:D8)>0,1,0)","v":1},"Error Check"]
[null,"All","Error Check",{"$f":"IF(SUM(Sec1Status,Sec2Error)>0,1,0)","v":1}]
[]
[]
[]
[null,"Numerical Checks against Output for CSV"]
[null,"Section 2","Net Production",{"$f":"SUMIF('Section 2'!$I$14:$I$33,\"Y\",'Section 2'!E14:E33)-(SUM(OutputForCSV!D2:D21))","v":0}]

{"sheet":"OutputForCSV","index":6,"n_rows":22,"n_cols":10,"rows_kept":22,"cut":false,"hidden":true,"merged":[]}
["Entry",1,"DESTR","1",{"$f":"'Section 1'!D5","v":"2018-06-25"},{"$f":"'Section 1'!D9","v":0},{"$f":"'Section 1'!D10","v":0},{"$f":"'Section 1'!D11","v":0},"Annual","LastColumn"]
[1,{"$f":"IF(C2=\"\",\"\",2)","v":""},{"$f":"IFERROR(VLOOKUP($A2,'Section 2'!$A$14:$E$33,COLUMNS('Section 2'!$A$14:D$14),0),\"\")","v":""},{"$f":"IFERROR(VLOOKUP($A2,'Section 2'!$A$14:$E$33,COLUMNS('Section 2'!$A$14:E$14),0),\"\")","v":""}]
[2,{"$f":"IF(C3=\"\",\"\",2)","v":""},{"$f":"IFERROR(VLOOKUP($A3,'Section 2'!$A$14:$E$33,COLUMNS('Section 2'!$A$14:D$14),0),\"\")","v":""},{"$f":"IFERROR(VLOOKUP($A3,'Section 2'!$A$14:$E$33,COLUMNS('Section 2'!$A$14:E$14),0),\"\")","v":""}]
[3,"",{"$f":"IFERROR(VLOOKUP($A4,'Section 2'!$A$14:$E$33,COLUMNS('Section 2'!$A$14:D$14),0),\"\")","v":""},{"$f":"IFERROR(VLOOKUP($A4,'Section 2'!$A$14:$E$33,COLUMNS('Section 2'!$A$14:E$14),0),\"\")","v":""}]
[4,"",{"$f":"IFERROR(VLOOKUP($A5,'Section 2'!$A$14:$E$33,COLUMNS('Section 2'!$A$14:D$14),0),\"\")","v":""},{"$f":"IFERROR(VLOOKUP($A5,'Section 2'!$A$14:$E$33,COLUMNS('Section 2'!$A$14:E$14),0),\"\")","v":""}]
[5,"",{"$f":"IFERROR(VLOOKUP($A6,'Section 2'!$A$14:$E$33,COLUMNS('Section 2'!$A$14:D$14),0),\"\")","v":""},{"$f":"IFERROR(VLOOKUP($A6,'Section 2'!$A$14:$E$33,COLUMNS('Section 2'!$A$14:E$14),0),\"\")","v":""}]
[6,"",{"$f":"IFERROR(VLOOKUP($A7,'Section 2'!$A$14:$E$33,COLUMNS('Section 2'!$A$14:D$14),0),\"\")","v":""},{"$f":"IFERROR(VLOOKUP($A7,'Section 2'!$A$14:$E$33,COLUMNS('Section 2'!$A$14:E$14),0),\"\")","v":""}]
[7,"",{"$f":"IFERROR(VLOOKUP($A8,'Section 2'!$A$14:$E$33,COLUMNS('Section 2'!$A$14:D$14),0),\"\")","v":""},{"$f":"IFERROR(VLOOKUP($A8,'Section 2'!$A$14:$E$33,COLUMNS('Section 2'!$A$14:E$14),0),\"\")","v":""}]
[8,"",{"$f":"IFERROR(VLOOKUP($A9,'Section 2'!$A$14:$E$33,COLUMNS('Section 2'!$A$14:D$14),0),\"\")","v":""},{"$f":"IFERROR(VLOOKUP($A9,'Section 2'!$A$14:$E$33,COLUMNS('Section 2'!$A$14:E$14),0),\"\")","v":""}]
[9,"",{"$f":"IFERROR(VLOOKUP($A10,'Section 2'!$A$14:$E$33,COLUMNS('Section 2'!$A$14:D$14),0),\"\")","v":""},{"$f":"IFERROR(VLOOKUP($A10,'Section 2'!$A$14:$E$33,COLUMNS('Section 2'!$A$14:E$14),0),\"\")","v":""}]
[10,{"$f":"IF(C11=\"\",\"\",2)","v":""},{"$f":"IFERROR(VLOOKUP($A11,'Section 2'!$A$14:$E$33,COLUMNS('Section 2'!$A$14:D$14),0),\"\")","v":""},{"$f":"IFERROR(VLOOKUP($A11,'Section 2'!$A$14:$E$33,COLUMNS('Section 2'!$A$14:E$14),0),\"\")","v":""}]
[11,"",{"$f":"IFERROR(VLOOKUP($A12,'Section 2'!$A$14:$E$33,COLUMNS('Section 2'!$A$14:D$14),0),\"\")","v":""},{"$f":"IFERROR(VLOOKUP($A12,'Section 2'!$A$14:$E$33,COLUMNS('Section 2'!$A$14:E$14),0),\"\")","v":""}]
[12,"",{"$f":"IFERROR(VLOOKUP($A13,'Section 2'!$A$14:$E$33,COLUMNS('Section 2'!$A$14:D$14),0),\"\")","v":""},{"$f":"IFERROR(VLOOKUP($A13,'Section 2'!$A$14:$E$33,COLUMNS('Section 2'!$A$14:E$14),0),\"\")","v":""}]
[13,"",{"$f":"IFERROR(VLOOKUP($A14,'Section 2'!$A$14:$E$33,COLUMNS('Section 2'!$A$14:D$14),0),\"\")","v":""},{"$f":"IFERROR(VLOOKUP($A14,'Section 2'!$A$14:$E$33,COLUMNS('Section 2'!$A$14:E$14),0),\"\")","v":""}]
[14,"",{"$f":"IFERROR(VLOOKUP($A15,'Section 2'!$A$14:$E$33,COLUMNS('Section 2'!$A$14:D$14),0),\"\")","v":""},{"$f":"IFERROR(VLOOKUP($A15,'Section 2'!$A$14:$E$33,COLUMNS('Section 2'!$A$14:E$14),0),\"\")","v":""}]
[15,"",{"$f":"IFERROR(VLOOKUP($A16,'Section 2'!$A$14:$E$33,COLUMNS('Section 2'!$A$14:D$14),0),\"\")","v":""},{"$f":"IFERROR(VLOOKUP($A16,'Section 2'!$A$14:$E$33,COLUMNS('Section 2'!$A$14:E$14),0),\"\")","v":""}]
[16,"",{"$f":"IFERROR(VLOOKUP($A17,'Section 2'!$A$14:$E$33,COLUMNS('Section 2'!$A$14:D$14),0),\"\")","v":""},{"$f":"IFERROR(VLOOKUP($A17,'Section 2'!$A$14:$E$33,COLUMNS('Section 2'!$A$14:E$14),0),\"\")","v":""}]
[17,"",{"$f":"IFERROR(VLOOKUP($A18,'Section 2'!$A$14:$E$33,COLUMNS('Section 2'!$A$14:D$14),0),\"\")","v":""},{"$f":"IFERROR(VLOOKUP($A18,'Section 2'!$A$14:$E$33,COLUMNS('Section 2'!$A$14:E$14),0),\"\")","v":""}]
[18,"",{"$f":"IFERROR(VLOOKUP($A19,'Section 2'!$A$14:$E$33,COLUMNS('Section 2'!$A$14:D$14),0),\"\")","v":""},{"$f":"IFERROR(VLOOKUP($A19,'Section 2'!$A$14:$E$33,COLUMNS('Section 2'!$A$14:E$14),0),\"\")","v":""}]
[19,"",{"$f":"IFERROR(VLOOKUP($A20,'Section 2'!$A$14:$E$33,COLUMNS('Section 2'!$A$14:D$14),0),\"\")","v":""},{"$f":"IFERROR(VLOOKUP($A20,'Section 2'!$A$14:$E$33,COLUMNS('Section 2'!$A$14:E$14),0),\"\")","v":""}]
[20,"",{"$f":"IFERROR(VLOOKUP($A21,'Section 2'!$A$14:$E$33,COLUMNS('Section 2'!$A$14:D$14),0),\"\")","v":""},{"$f":"IFERROR(VLOOKUP($A21,'Section 2'!$A$14:$E$33,COLUMNS('Section 2'!$A$14:E$14),0),\"\")","v":""}]
["LastRow"]